[Event "GrandPrix_29.05"]
[Site "Chess.com"]
[Date "2020.05.29"]
[Round "7"]
[White "VitaliyBernadskiy"]
[Black "igorkovalenko"]
[Result "0-1"]
[WhiteElo "2298"]
[BlackElo "2275"]
[TimeControl "600+2"]
[EndTime "12:26:34 PDT"]
[Termination "igorkovalenko won by resignation"]

1. d4 {[%clk 0:09:56.4]} 1... Nf6 {[%clk 0:09:59]} 2. c4 {[%clk 0:09:57.2]} 2...
e6 {[%clk 0:09:59.5]} 3. Nc3 {[%clk 0:09:55.9]} 3... Bb4 {[%clk 0:10:00.2]} 4.
Nf3 {[%clk 0:09:57.2]} 4... b6 {[%clk 0:09:48.9]} 5. Bg5 {[%clk 0:09:57.2]} 5...
Bb7 {[%clk 0:09:49.8]} 6. e3 {[%clk 0:09:54.8]} 6... h6 {[%clk 0:09:50.5]} 7.
Bh4 {[%clk 0:09:55.5]} 7... Bxc3+ {[%clk 0:09:50]} 8. bxc3 {[%clk 0:09:56.1]}
8... d6 {[%clk 0:09:51.4]} 9. Nd2 {[%clk 0:09:42.2]} 9... Nbd7 {[%clk
0:09:52.1]} 10. f3 {[%clk 0:09:41.8]} 10... Qe7 {[%clk 0:09:49.8]} 11. a4 {[%clk
0:09:39.8]} 11... e5 {[%clk 0:09:47.9]} 12. e4 {[%clk 0:09:18.4]} 12... g5
{[%clk 0:09:30.1]} 13. Bf2 {[%clk 0:09:17.6]} 13... a5 {[%clk 0:09:16.8]} 14.
Bd3 {[%clk 0:09:03.2]} 14... Nh5 {[%clk 0:09:15.4]} 15. Nf1 {[%clk 0:09:00.2]}
15... f5 {[%clk 0:08:55.6]} 16. Ne3 {[%clk 0:08:59.4]} 16... f4 {[%clk
0:08:29.4]} 17. Nd5 {[%clk 0:08:42.5]} 17... Qd8 {[%clk 0:08:22.1]} 18. g4
{[%clk 0:08:41.1]} 18... Ng7 {[%clk 0:08:10.6]} 19. h4 {[%clk 0:08:01.8]} 19...
Kf7 {[%clk 0:08:11]} 20. hxg5 {[%clk 0:07:56.8]} 20... hxg5 {[%clk 0:08:12.9]}
21. Rxh8 {[%clk 0:07:54.9]} 21... Qxh8 {[%clk 0:08:14.8]} 22. Nxc7 {[%clk
0:07:56.4]} 22... Rc8 {[%clk 0:08:03.9]} 23. Nb5 {[%clk 0:07:57.1]} 23... Ne8
{[%clk 0:08:02.8]} 24. Ke2 {[%clk 0:07:54.1]} 24... Bc6 {[%clk 0:07:49.8]} 25.
Qh1 {[%clk 0:07:46.9]} 25... Qg7 {[%clk 0:07:50.8]} 26. Qh5+ {[%clk 0:07:47]}
26... Ke7 {[%clk 0:07:51.9]} 27. Rh1 {[%clk 0:07:07]} 27... Bxb5 {[%clk
0:07:51.4]} 28. axb5 {[%clk 0:07:06.9]} 28... Nef6 {[%clk 0:07:51.4]} 29. Qh2
{[%clk 0:06:40.8]} 29... Qg8 {[%clk 0:07:48.2]} 30. Kf1 {[%clk 0:06:10.2]} 30...
a4 {[%clk 0:04:57.8]} 31. Kg2 {[%clk 0:06:09.8]} 31... a3 {[%clk 0:04:59.1]} 32.
Ra1 {[%clk 0:06:10.5]} 32... Ra8 {[%clk 0:05:00.3]} 33. Ra2 {[%clk 0:06:11.2]}
33... Qg7 {[%clk 0:05:00.8]} 34. Kf1 {[%clk 0:05:59.8]} 34... Ne8 {[%clk
0:04:43.9]} 35. Ke2 {[%clk 0:05:44.9]} 35... Nc7 {[%clk 0:04:44.7]} 36. Qg1
{[%clk 0:05:37.7]} 36... Ne6 {[%clk 0:04:44.6]} 37. Qa1 {[%clk 0:05:37.6]} 37...
Rh8 {[%clk 0:04:27.6]} 38. Rxa3 {[%clk 0:05:28.7]} 38... exd4 {[%clk 0:04:28.3]}
39. Ra7 {[%clk 0:05:05.3]} 39... Rh2 {[%clk 0:04:23.6]} 40. cxd4 {[%clk
0:03:59.8]} 40... Nxd4+ {[%clk 0:03:57.2]} 41. Kf1 {[%clk 0:04:00.8]} 41... Rh1+
{[%clk 0:03:58.1]} 42. Bg1 {[%clk 0:04:02.1]} 42... Qh8 {[%clk 0:03:59.1]} 43.
Qa2 {[%clk 0:03:03.4]} 43... Nxf3 {[%clk 0:03:43.9]} 0-1

[Event "GrandPrix_29.05"]
[Site "Chess.com"]
[Date "2020.05.29"]
[Round "7"]
[White "kostasam18"]
[Black "ENajer77"]
[Result "0-1"]
[WhiteElo "2063"]
[BlackElo "2268"]
[TimeControl "600+2"]
[EndTime "12:26:39 PDT"]
[Termination "ENajer77 won by resignation"]

1. e4 {[%clk 0:10:01.9]} 1... c6 {[%clk 0:09:55]} 2. Nc3 {[%clk 0:10:01.7]} 2...
d5 {[%clk 0:09:53.6]} 3. Nf3 {[%clk 0:10:02.4]} 3... Bg4 {[%clk 0:09:50.6]} 4.
h3 {[%clk 0:10:02.6]} 4... Bxf3 {[%clk 0:09:51.1]} 5. Qxf3 {[%clk 0:10:04.5]}
5... Nf6 {[%clk 0:09:52.3]} 6. Be2 {[%clk 0:10:04.3]} 6... e6 {[%clk 0:09:52.3]}
7. O-O {[%clk 0:10:03.1]} 7... Bc5 {[%clk 0:09:48.8]} 8. Rd1 {[%clk 0:09:42.2]}
8... Bd4 {[%clk 0:09:48.3]} 9. exd5 {[%clk 0:09:10.4]} 9... cxd5 {[%clk
0:09:39.7]} 10. Nb5 {[%clk 0:09:05.5]} 10... Bb6 {[%clk 0:09:35.3]} 11. d4
{[%clk 0:08:48.4]} 11... a6 {[%clk 0:09:14.3]} 12. Na3 {[%clk 0:08:41.2]} 12...
Nc6 {[%clk 0:09:10.5]} 13. c3 {[%clk 0:08:40]} 13... Bc7 {[%clk 0:09:08.7]} 14.
Nc2 {[%clk 0:08:23.3]} 14... Ne4 {[%clk 0:08:50.6]} 15. Ne1 {[%clk 0:08:16.4]}
15... h5 {[%clk 0:08:31]} 16. Nd3 {[%clk 0:08:04.4]} 16... g5 {[%clk 0:08:29]}
17. g3 {[%clk 0:07:43.9]} 17... Qe7 {[%clk 0:06:37.3]} 18. Qg2 {[%clk
0:07:36.9]} 18... f5 {[%clk 0:06:31.6]} 19. Bd2 {[%clk 0:06:52.6]} 19... O-O-O
{[%clk 0:06:28]} 20. Be1 {[%clk 0:06:51]} 20... Kb8 {[%clk 0:06:27.6]} 21. b4
{[%clk 0:06:43.6]} 21... e5 {[%clk 0:04:45.9]} 22. dxe5 {[%clk 0:05:39]} 22...
Nxe5 {[%clk 0:04:45.2]} 23. f3 {[%clk 0:05:06.2]} 23... Bb6+ {[%clk 0:04:12.8]}
24. Kh1 {[%clk 0:04:47.2]} 24... Nc4 {[%clk 0:02:38.9]} 25. fxe4 {[%clk
0:03:22.3]} 25... Ne3 {[%clk 0:02:38.2]} 26. Qh2 {[%clk 0:02:48.1]} 26... Qxe4+
{[%clk 0:02:33.7]} 0-1

[Event "GrandPrix_29.05"]
[Site "Chess.com"]
[Date "2020.05.29"]
[Round "7"]
[White "abraham1982"]
[Black "RovenVogel"]
[Result "1/2-1/2"]
[WhiteElo "2204"]
[BlackElo "2265"]
[TimeControl "600+2"]
[EndTime "12:26:45 PDT"]
[Termination "Game drawn by repetition"]

1. e4 {[%clk 0:09:57]} 1... c5 {[%clk 0:09:41.8]} 2. Nf3 {[%clk 0:09:53]} 2...
d6 {[%clk 0:09:41.8]} 3. c3 {[%clk 0:09:52.6]} 3... Nf6 {[%clk 0:09:41.2]} 4.
Be2 {[%clk 0:09:53.2]} 4... g6 {[%clk 0:09:11.3]} 5. O-O {[%clk 0:09:41]} 5...
Bg7 {[%clk 0:09:10.3]} 6. Qc2 {[%clk 0:09:37.5]} 6... Bg4 {[%clk 0:09:05.5]} 7.
d4 {[%clk 0:09:36.2]} 7... cxd4 {[%clk 0:08:43]} 8. cxd4 {[%clk 0:09:33.2]} 8...
Nc6 {[%clk 0:08:34.8]} 9. Be3 {[%clk 0:09:28.1]} 9... O-O {[%clk 0:08:18]} 10.
Nc3 {[%clk 0:09:23.8]} 10... Rc8 {[%clk 0:07:53.7]} 11. a3 {[%clk 0:09:21.1]}
11... Na5 {[%clk 0:07:00.3]} 12. h3 {[%clk 0:09:15.7]} 12... Bxf3 {[%clk
0:06:56.1]} 13. Bxf3 {[%clk 0:09:10.2]} 13... Nd7 {[%clk 0:06:47.5]} 14. Rfd1
{[%clk 0:09:00.2]} 14... Nc4 {[%clk 0:06:28.5]} 15. Bc1 {[%clk 0:08:55.2]} 15...
b5 {[%clk 0:06:18]} 16. b3 {[%clk 0:08:38.6]} 16... Na5 {[%clk 0:06:07.3]} 17.
Qb2 {[%clk 0:08:35.7]} 17... a6 {[%clk 0:05:56.6]} 18. Be3 {[%clk 0:08:29.6]}
18... e6 {[%clk 0:05:56.2]} 19. Rac1 {[%clk 0:08:25.7]} 19... Qh4 {[%clk
0:05:44.5]} 20. Rc2 {[%clk 0:08:14.8]} 20... Bh6 {[%clk 0:05:33.8]} 21. Bxh6
{[%clk 0:07:59.8]} 21... Qxh6 {[%clk 0:05:35.7]} 22. Rdc1 {[%clk 0:07:59.8]}
22... Qh4 {[%clk 0:05:11.8]} 23. Ne2 {[%clk 0:07:50.9]} 23... Nb6 {[%clk
0:05:02.5]} 24. Rxc8 {[%clk 0:07:47.4]} 24... Rxc8 {[%clk 0:04:56.1]} 25. Rxc8+
{[%clk 0:06:22.7]} 25... Nxc8 {[%clk 0:04:58]} 26. Qc3 {[%clk 0:06:22.8]} 26...
Qd8 {[%clk 0:04:57.2]} 27. Nf4 {[%clk 0:06:20.5]} 27... Ne7 {[%clk 0:04:54]} 28.
Nd3 {[%clk 0:06:17.1]} 28... Nac6 {[%clk 0:04:45.4]} 29. d5 {[%clk 0:06:02.6]}
29... exd5 {[%clk 0:04:42.6]} 30. exd5 {[%clk 0:06:02.7]} 30... Nb8 {[%clk
0:04:27]} 31. Nb4 {[%clk 0:05:58.2]} 31... Qa5 {[%clk 0:03:41.7]} 32. Qe3 {[%clk
0:05:35]} 32... Qc7 {[%clk 0:03:28.9]} 33. Nc6 {[%clk 0:05:32.3]} 33... Nbxc6
{[%clk 0:03:26.9]} 34. dxc6 {[%clk 0:05:32.2]} 34... d5 {[%clk 0:01:14.6]} 35.
Qc5 {[%clk 0:05:28.1]} 35... Qxc6 {[%clk 0:01:15.3]} 36. Qxe7 {[%clk 0:05:27.2]}
36... Qc1+ {[%clk 0:01:16]} 37. Kh2 {[%clk 0:05:23.6]} 37... Qf4+ {[%clk
0:01:16.8]} 38. Kh1 {[%clk 0:04:53.7]} 38... Qc1+ {[%clk 0:01:12.6]} 39. Kh2
{[%clk 0:04:53.4]} 39... Qf4+ {[%clk 0:01:13.2]} 40. Kh1 {[%clk 0:04:53.7]}
40... Qc1+ {[%clk 0:01:13.8]} 41. Kh2 {[%clk 0:04:54]} 1/2-1/2

[Event "GrandPrix_29.05"]
[Site "Chess.com"]
[Date "2020.05.29"]
[Round "7"]
[White "klippfiskkjerringa"]
[Black "Ward-Tsh"]
[Result "1-0"]
[WhiteElo "2083"]
[BlackElo "2135"]
[TimeControl "600+2"]
[EndTime "12:26:51 PDT"]
[Termination "klippfiskkjerringa won by resignation"]

1. Nf3 {[%clk 0:09:20.6]} 1... d5 {[%clk 0:09:19.8]} 2. e3 {[%clk 0:09:20.8]}
2... Nf6 {[%clk 0:09:19.2]} 3. c4 {[%clk 0:09:21.9]} 3... c6 {[%clk 0:09:18]} 4.
Nc3 {[%clk 0:09:18.6]} 4... Nbd7 {[%clk 0:09:15.7]} 5. d4 {[%clk 0:09:14.6]}
5... e6 {[%clk 0:09:15.3]} 6. Bd2 {[%clk 0:09:14.3]} 6... Bd6 {[%clk 0:09:10.6]}
7. Bd3 {[%clk 0:09:14.8]} 7... dxc4 {[%clk 0:08:57.6]} 8. Bxc4 {[%clk
0:09:15.6]} 8... O-O {[%clk 0:08:58.5]} 9. O-O {[%clk 0:09:14.7]} 9... e5 {[%clk
0:08:58.8]} 10. Qc2 {[%clk 0:08:40.1]} 10... Qe7 {[%clk 0:08:26.8]} 11. h3
{[%clk 0:08:28.7]} 11... b5 {[%clk 0:08:07.7]} 12. Bb3 {[%clk 0:08:15.6]} 12...
Bb7 {[%clk 0:07:26]} 13. Rae1 {[%clk 0:06:51.8]} 13... e4 {[%clk 0:07:24.6]} 14.
Ng5 {[%clk 0:06:50]} 14... Rae8 {[%clk 0:07:25.4]} 15. f3 {[%clk 0:06:45.9]}
15... exf3 {[%clk 0:06:53.7]} 16. Nxf3 {[%clk 0:06:02.4]} 16... b4 {[%clk
0:06:54.8]} 17. Ne2 {[%clk 0:05:34.2]} 17... Ne4 {[%clk 0:06:54.8]} 18. Nf4
{[%clk 0:05:17.4]} 18... Ndf6 {[%clk 0:06:51]} 19. Nd3 {[%clk 0:04:54.4]} 19...
Bg3 {[%clk 0:06:48.6]} 20. Nfe5 {[%clk 0:04:39.5]} 20... Bxe1 {[%clk 0:06:45.4]}
21. Bxe1 {[%clk 0:04:38.4]} 21... Nd5 {[%clk 0:06:39.6]} 22. Bxd5 {[%clk
0:04:28.8]} 22... cxd5 {[%clk 0:06:24.3]} 23. Bxb4 {[%clk 0:04:28.7]} 23... Qe6
{[%clk 0:05:14.8]} 24. Nf4 {[%clk 0:04:02.5]} 24... Qb6 {[%clk 0:04:55.1]} 25.
Bxf8 {[%clk 0:03:57.9]} 25... Rc8 {[%clk 0:04:53.5]} 26. Bc5 {[%clk 0:03:22.5]}
26... Nxc5 {[%clk 0:04:53.5]} 27. dxc5 {[%clk 0:03:23.4]} 27... Rxc5 {[%clk
0:04:53.9]} 28. Qf5 {[%clk 0:03:17.9]} 28... Rc7 {[%clk 0:04:45.4]} 29. Nh5
{[%clk 0:02:33.2]} 29... Qxe3+ {[%clk 0:04:40.9]} 30. Kh2 {[%clk 0:02:30.2]}
30... g6 {[%clk 0:04:29]} 31. Nf6+ {[%clk 0:02:26]} 31... Kg7 {[%clk 0:04:27.5]}
32. Ne8+ {[%clk 0:01:55.7]} 32... Kf8 {[%clk 0:04:26.4]} 33. Qf6 {[%clk
0:01:53.5]} 1-0

[Event "GrandPrix_29.05"]
[Site "Chess.com"]
[Date "2020.05.29"]
[Round "7"]
[White "Arm-Akiba"]
[Black "vpantev"]
[Result "1/2-1/2"]
[WhiteElo "2858"]
[BlackElo "2819"]
[TimeControl "600+2"]
[EndTime "12:27:07 PDT"]
[Termination "Game drawn by agreement"]

1. d4 {[%clk 0:09:32.7]} 1... Nf6 {[%clk 0:10:00.1]} 2. c4 {[%clk 0:09:32.4]}
2... e6 {[%clk 0:10:00.7]} 3. Nf3 {[%clk 0:09:32.2]} 3... Bb4+ {[%clk
0:10:01.2]} 4. Nbd2 {[%clk 0:09:29.1]} 4... b6 {[%clk 0:09:58.6]} 5. a3 {[%clk
0:09:28]} 5... Bxd2+ {[%clk 0:09:59]} 6. Qxd2 {[%clk 0:09:29.2]} 6... Bb7 {[%clk
0:09:59.8]} 7. e3 {[%clk 0:09:30.7]} 7... O-O {[%clk 0:09:54.1]} 8. Be2 {[%clk
0:09:31.8]} 8... a5 {[%clk 0:09:51.5]} 9. b3 {[%clk 0:09:32.3]} 9... d6 {[%clk
0:09:52.3]} 10. O-O {[%clk 0:09:33.1]} 10... Nbd7 {[%clk 0:09:51.5]} 11. Bb2
{[%clk 0:09:34.1]} 11... Qb8 {[%clk 0:09:28]} 12. Rfd1 {[%clk 0:09:16]} 12... h6
{[%clk 0:09:22.8]} 13. Ne1 {[%clk 0:09:10.3]} 13... Ne4 {[%clk 0:09:13]} 14. Qc2
{[%clk 0:09:10.1]} 14... f5 {[%clk 0:09:03.9]} 15. d5 {[%clk 0:09:07.2]} 15...
e5 {[%clk 0:08:54]} 16. f3 {[%clk 0:08:58.2]} 16... Ng5 {[%clk 0:08:39.9]} 17.
h4 {[%clk 0:07:37.9]} 17... Nh7 {[%clk 0:08:37.5]} 18. Bd3 {[%clk 0:07:39]}
18... g6 {[%clk 0:08:35.6]} 19. h5 {[%clk 0:07:39.9]} 19... Qe8 {[%clk
0:08:32.2]} 20. f4 {[%clk 0:07:10.9]} 20... e4 {[%clk 0:08:21.4]} 21. Be2 {[%clk
0:05:33.1]} 21... Nhf6 {[%clk 0:08:15.5]} 22. Qc3 {[%clk 0:05:27.6]} 22... gxh5
{[%clk 0:08:03.5]} 23. Nc2 {[%clk 0:05:17.6]} 23... Kh7 {[%clk 0:07:24.8]} 24.
Kf2 {[%clk 0:04:43.9]} 24... Qg6 {[%clk 0:07:20.3]} 25. Rh1 {[%clk 0:04:41.7]}
25... Rg8 {[%clk 0:07:14.6]} 26. Ke1 {[%clk 0:04:37.1]} 26... a4 {[%clk
0:05:36.4]} 27. b4 {[%clk 0:04:29.9]} 27... b5 {[%clk 0:05:37.2]} 28. cxb5
{[%clk 0:04:00.2]} 28... Nxd5 {[%clk 0:05:23.6]} 29. Qd4 {[%clk 0:04:00.8]}
29... N7f6 {[%clk 0:05:00.4]} 30. Kd2 {[%clk 0:03:57.8]} 30... Qxg2 {[%clk
0:04:42]} 31. Qc4 {[%clk 0:03:32.1]} 31... Raf8 {[%clk 0:04:14.1]} 32. Bxf6
{[%clk 0:02:45.6]} 32... Rxf6 {[%clk 0:04:00.7]} 33. Rxh5 {[%clk 0:02:45.9]}
33... Qf2 {[%clk 0:03:19.7]} 34. Rf1 {[%clk 0:02:45.5]} 34... Qg2 {[%clk
0:03:13.9]} 35. Rfh1 {[%clk 0:02:46.5]} 35... Qf2 {[%clk 0:03:09.9]} 36. Rf1
{[%clk 0:02:42.3]} 36... Qg2 {[%clk 0:03:08.1]} 1/2-1/2

[Event "GrandPrix_29.05"]
[Site "Chess.com"]
[Date "2020.05.29"]
[Round "7"]
[White "SpasKozhuharov"]
[Black "benko_008"]
[Result "0-1"]
[WhiteElo "2151"]
[BlackElo "2139"]
[TimeControl "600+2"]
[EndTime "12:27:19 PDT"]
[Termination "benko_008 won by resignation"]

1. c4 {[%clk 0:10:01.9]} 1... e6 {[%clk 0:09:55.1]} 2. Nc3 {[%clk 0:10:01.7]}
2... d5 {[%clk 0:09:54.6]} 3. d4 {[%clk 0:10:01.4]} 3... Nf6 {[%clk 0:09:53.3]}
4. cxd5 {[%clk 0:10:01.8]} 4... exd5 {[%clk 0:09:53.4]} 5. Bg5 {[%clk
0:10:03.1]} 5... c6 {[%clk 0:09:51]} 6. e3 {[%clk 0:10:03.8]} 6... Be7 {[%clk
0:09:50.9]} 7. Bd3 {[%clk 0:10:03.4]} 7... O-O {[%clk 0:09:44.7]} 8. Qc2 {[%clk
0:10:01.2]} 8... h6 {[%clk 0:09:43.8]} 9. Bh4 {[%clk 0:10:00.5]} 9... a5 {[%clk
0:09:41.9]} 10. Nge2 {[%clk 0:09:59.6]} 10... Na6 {[%clk 0:09:36.2]} 11. a3
{[%clk 0:09:55.5]} 11... Re8 {[%clk 0:09:29.2]} 12. h3 {[%clk 0:09:49.3]} 12...
Nc7 {[%clk 0:08:32.3]} 13. O-O {[%clk 0:09:36]} 13... Bd7 {[%clk 0:08:19]} 14.
Na4 {[%clk 0:09:33.7]} 14... Ne6 {[%clk 0:08:08.6]} 15. Nc5 {[%clk 0:09:01.2]}
15... Nxc5 {[%clk 0:07:27.5]} 16. dxc5 {[%clk 0:09:03.1]} 16... Nh5 {[%clk
0:06:51]} 17. Bxe7 {[%clk 0:09:05]} 17... Qxe7 {[%clk 0:06:49.2]} 18. b4 {[%clk
0:08:04.7]} 18... Qg5 {[%clk 0:06:31]} 19. Kh1 {[%clk 0:07:41.7]} 19... Qh4
{[%clk 0:05:51.5]} 20. Qc3 {[%clk 0:07:27.1]} 20... Bxh3 {[%clk 0:04:24]} 21.
gxh3 {[%clk 0:07:25.4]} 21... Qxh3+ {[%clk 0:04:25]} 22. Kg1 {[%clk 0:07:25.6]}
22... Re6 {[%clk 0:03:47]} 23. Qd4 {[%clk 0:07:04.3]} 23... Rae8 {[%clk
0:03:07.2]} 24. Nf4 {[%clk 0:04:52.6]} 24... Nxf4 {[%clk 0:03:05.2]} 25. Qxf4
{[%clk 0:04:51.5]} 25... Re5 {[%clk 0:02:56.5]} 26. f3 {[%clk 0:03:58.7]} 26...
Rg5+ {[%clk 0:02:54.9]} 27. Kf2 {[%clk 0:03:59]} 27... Qg2+ {[%clk 0:02:54.4]}
28. Ke1 {[%clk 0:03:59.4]} 28... Qb2 {[%clk 0:02:40.5]} 29. Rd1 {[%clk
0:03:21.3]} 29... Rg2 {[%clk 0:02:13.3]} 30. e4 {[%clk 0:03:16.9]} 30... Qc3+
{[%clk 0:02:09.9]} 31. Rd2 {[%clk 0:03:17.6]} 31... Qc1+ {[%clk 0:02:09.5]} 0-1

[Event "GrandPrix_29.05"]
[Site "Chess.com"]
[Date "2020.05.29"]
[Round "7"]
[White "Nitzan_Steinberg"]
[Black "sahidi"]
[Result "1-0"]
[WhiteElo "2313"]
[BlackElo "2132"]
[TimeControl "600+2"]
[EndTime "12:27:26 PDT"]
[Termination "Nitzan_Steinberg won by resignation"]

1. e4 {[%clk 0:10:01.9]} 1... e5 {[%clk 0:09:55.9]} 2. Nf3 {[%clk 0:10:02.7]}
2... Nc6 {[%clk 0:09:56.1]} 3. Bb5 {[%clk 0:10:02.7]} 3... a6 {[%clk 0:09:56.5]}
4. Ba4 {[%clk 0:09:59.5]} 4... Nf6 {[%clk 0:09:57.5]} 5. O-O {[%clk 0:10:00.3]}
5... b5 {[%clk 0:09:32]} 6. Bb3 {[%clk 0:10:00]} 6... Be7 {[%clk 0:09:32.4]} 7.
Re1 {[%clk 0:09:55.7]} 7... d6 {[%clk 0:09:23.8]} 8. c3 {[%clk 0:09:56.4]} 8...
Na5 {[%clk 0:08:42.1]} 9. Bc2 {[%clk 0:09:49.6]} 9... c5 {[%clk 0:08:37.5]} 10.
d4 {[%clk 0:09:39.5]} 10... cxd4 {[%clk 0:08:14.5]} 11. cxd4 {[%clk 0:09:39.7]}
11... Nc6 {[%clk 0:08:11.8]} 12. h3 {[%clk 0:09:16.7]} 12... O-O {[%clk
0:08:05.1]} 13. Nc3 {[%clk 0:09:17.1]} 13... Bb7 {[%clk 0:07:37.6]} 14. d5
{[%clk 0:09:16.6]} 14... Nb8 {[%clk 0:07:10.3]} 15. b4 {[%clk 0:08:54.3]} 15...
Nbd7 {[%clk 0:07:07.2]} 16. a4 {[%clk 0:08:53.7]} 16... bxa4 {[%clk 0:07:05.1]}
17. Bxa4 {[%clk 0:08:34.2]} 17... Rc8 {[%clk 0:06:43.1]} 18. Bd2 {[%clk
0:08:19.2]} 18... Nb6 {[%clk 0:06:40.5]} 19. Bc6 {[%clk 0:08:11.1]} 19... Bxc6
{[%clk 0:06:14.6]} 20. dxc6 {[%clk 0:08:10.9]} 20... Rxc6 {[%clk 0:06:11.9]} 21.
Rxa6 {[%clk 0:08:11.4]} 21... Rc4 {[%clk 0:05:59.2]} 22. Qb3 {[%clk 0:07:40]}
22... Nfd7 {[%clk 0:05:38]} 23. Nd5 {[%clk 0:07:32]} 23... Rc8 {[%clk
0:05:25.6]} 24. Ne3 {[%clk 0:07:03.4]} 24... Qc7 {[%clk 0:05:07.9]} 25. Rea1
{[%clk 0:06:53.5]} 25... Qb7 {[%clk 0:04:45.1]} 26. Nf5 {[%clk 0:06:24.6]} 26...
Rfe8 {[%clk 0:04:37.7]} 27. Ng5 {[%clk 0:05:47.1]} 27... Nc4 {[%clk 0:04:07.5]}
28. Ra7 {[%clk 0:05:45]} 28... Qb5 {[%clk 0:03:46.8]} 29. R1a5 {[%clk
0:05:43.5]} 29... Qc6 {[%clk 0:03:24.3]} 30. b5 {[%clk 0:05:41.9]} 30... Qc5
{[%clk 0:03:13.2]} 31. Rxd7 {[%clk 0:05:35.6]} 31... h6 {[%clk 0:02:16.8]} 32.
Bb4 {[%clk 0:05:19.6]} 32... Qb6 {[%clk 0:02:06]} 33. Nxe7+ {[%clk 0:05:09.4]}
33... Rxe7 {[%clk 0:01:55.8]} 34. Rxe7 {[%clk 0:05:11.3]} 34... hxg5 {[%clk
0:01:54]} 35. Qf3 {[%clk 0:04:33.5]} 35... Rf8 {[%clk 0:01:45.5]} 36. Ra8 {[%clk
0:04:31.9]} 36... f6 {[%clk 0:01:30.6]} 37. Qh5 {[%clk 0:04:24.9]} 37... Rxa8
{[%clk 0:00:47.7]} 38. Qf7+ {[%clk 0:04:25]} 1-0

[Event "GrandPrix_29.05"]
[Site "Chess.com"]
[Date "2020.05.29"]
[Round "7"]
[White "bratkoo"]
[Black "Vesper2018"]
[Result "1-0"]
[WhiteElo "2225"]
[BlackElo "1901"]
[TimeControl "600+2"]
[EndTime "12:27:28 PDT"]
[Termination "bratkoo won on time"]

1. e4 {[%clk 0:10:00.3]} 1... c5 {[%clk 0:10:00.6]} 2. Nf3 {[%clk 0:10:00.7]}
2... d6 {[%clk 0:10:01.7]} 3. d4 {[%clk 0:10:01.5]} 3... cxd4 {[%clk 0:10:03]}
4. Nxd4 {[%clk 0:10:03.4]} 4... Nf6 {[%clk 0:10:04.3]} 5. Nc3 {[%clk 0:10:05.1]}
5... a6 {[%clk 0:10:05.9]} 6. h3 {[%clk 0:10:06.2]} 6... e6 {[%clk 0:09:50.1]}
7. g4 {[%clk 0:10:00.7]} 7... Be7 {[%clk 0:09:49.3]} 8. g5 {[%clk 0:09:59.2]}
8... Nfd7 {[%clk 0:09:48.5]} 9. f4 {[%clk 0:10:00.3]} 9... h6 {[%clk 0:09:28.6]}
10. g6 {[%clk 0:08:49.5]} 10... Bh4+ {[%clk 0:09:22.5]} 11. Ke2 {[%clk
0:08:50.4]} 11... Nf6 {[%clk 0:08:27.4]} 12. gxf7+ {[%clk 0:08:37.2]} 12... Kxf7
{[%clk 0:08:28.1]} 13. Bg2 {[%clk 0:08:29.3]} 13... Nh5 {[%clk 0:07:48.4]} 14.
Be3 {[%clk 0:08:27.6]} 14... Ng3+ {[%clk 0:07:21]} 15. Kd2 {[%clk 0:08:28.9]}
15... Nxh1 {[%clk 0:07:21.7]} 16. Bxh1 {[%clk 0:08:29.3]} 16... Nc6 {[%clk
0:06:52.2]} 17. f5 {[%clk 0:08:10.4]} 17... Nxd4 {[%clk 0:06:16]} 18. Qh5+
{[%clk 0:08:10.2]} 18... Kg8 {[%clk 0:06:09.5]} 19. Bxd4 {[%clk 0:07:53.3]}
19... Qg5+ {[%clk 0:06:03]} 20. Qxg5 {[%clk 0:07:54.8]} 20... Bxg5+ {[%clk
0:06:04.2]} 21. Ke2 {[%clk 0:07:56.4]} 21... exf5 {[%clk 0:05:56.9]} 22. exf5
{[%clk 0:07:57.2]} 22... Bxf5 {[%clk 0:05:54.7]} 23. Bxb7 {[%clk 0:07:57.4]}
23... Re8+ {[%clk 0:05:37.6]} 24. Kf3 {[%clk 0:07:56.8]} 24... Kh7 {[%clk
0:05:33.4]} 25. Ne4 {[%clk 0:07:49.3]} 25... Rhf8 {[%clk 0:04:32.1]} 26. Nxg5+
{[%clk 0:07:49.3]} 26... hxg5 {[%clk 0:04:32.9]} 27. Kg3 {[%clk 0:07:49.7]}
27... Bxc2 {[%clk 0:04:22.2]} 28. Bxa6 {[%clk 0:07:50.1]} 28... Be4 {[%clk
0:04:12.3]} 29. Re1 {[%clk 0:07:43.3]} 29... d5 {[%clk 0:03:16.6]} 30. a4 {[%clk
0:07:39]} 30... Re6 {[%clk 0:02:58.5]} 31. Bb5 {[%clk 0:07:37.6]} 31... Rf3+
{[%clk 0:02:51.5]} 32. Kh2 {[%clk 0:07:38.5]} 32... g4 {[%clk 0:01:42.4]} 33.
Re3 {[%clk 0:07:37.4]} 33... g3+ {[%clk 0:00:47.9]} 34. Kg1 {[%clk 0:07:37.4]}
34... Rxe3 {[%clk 0:00:39.3]} 35. Bxe3 {[%clk 0:07:39.3]} 35... Bf3 {[%clk
0:00:39.9]} 36. Bd2 {[%clk 0:07:39]} 36... d4 {[%clk 0:00:20.5]} 37. a5 {[%clk
0:07:38]} 37... Re5 {[%clk 0:00:21.6]} 38. Bd3+ {[%clk 0:07:38.5]} 38... g6
{[%clk 0:00:21.3]} 39. a6 {[%clk 0:07:36.5]} 39... Ba8 {[%clk 0:00:07.8]} 40. b4
{[%clk 0:07:35.2]} 40... Rh5 {[%clk 0:00:04.3]} 41. Bf1 {[%clk 0:07:30.3]} 41...
Re5 {[%clk 0:00:04.2]} 42. b5 {[%clk 0:07:27.6]} 42... d3 {[%clk 0:00:03.7]} 43.
b6 {[%clk 0:07:24.9]} 43... Re7 {[%clk 0:00:05]} 44. Bxd3 {[%clk 0:07:21.8]}
44... Rd7 {[%clk 0:00:05.2]} 45. b7 {[%clk 0:07:12.5]} 45... Bxb7 {[%clk
0:00:06.3]} 46. axb7 {[%clk 0:07:13.9]} 46... Rxb7 {[%clk 0:00:07.7]} 47. Bf4
{[%clk 0:07:13.2]} 47... Rd7 {[%clk 0:00:06]} 48. Bf1 {[%clk 0:07:13.9]} 48...
Rd4 {[%clk 0:00:06.4]} 49. Bxg3 {[%clk 0:07:14.7]} 49... Kh6 {[%clk 0:00:07.9]}
50. Kf2 {[%clk 0:07:15.7]} 50... Rb4 {[%clk 0:00:08.7]} 51. Bd3 {[%clk
0:07:15.2]} 51... Rb3 {[%clk 0:00:09.8]} 52. Be4 {[%clk 0:07:12.5]} 52... Ra3
{[%clk 0:00:10.9]} 53. h4 {[%clk 0:07:12.3]} 53... Rb3 {[%clk 0:00:11.7]} 54.
Bf4+ {[%clk 0:07:08.6]} 54... Kh5 {[%clk 0:00:12.2]} 55. Bg5 {[%clk 0:07:10]}
55... Rb2+ {[%clk 0:00:11.7]} 56. Kg3 {[%clk 0:07:10.6]} 56... Rb3+ {[%clk
0:00:10.2]} 57. Kf4 {[%clk 0:07:10.7]} 57... Ra3 {[%clk 0:00:10.1]} 58. Be7
{[%clk 0:07:11.3]} 58... Ra4 {[%clk 0:00:11.2]} 59. Ke5 {[%clk 0:07:11]} 59...
Kh6 {[%clk 0:00:11.6]} 60. Bg5+ {[%clk 0:07:11.6]} 60... Kg7 {[%clk 0:00:12.8]}
61. Bf6+ {[%clk 0:07:10.8]} 61... Kh6 {[%clk 0:00:14.1]} 62. Bc2 {[%clk
0:07:09.2]} 62... Rb4 {[%clk 0:00:14.6]} 63. Ke6 {[%clk 0:07:10.1]} 63... Rb6+
{[%clk 0:00:15.4]} 64. Kf7 {[%clk 0:07:10.4]} 64... Rb7+ {[%clk 0:00:11.9]} 65.
Be7 {[%clk 0:07:08.5]} 65... Rxe7+ {[%clk 0:00:11.8]} 66. Kxe7 {[%clk
0:07:09.2]} 1-0